Cogmind - Beta 16 @@@ ROGUE MODE // 2025.10.28 @ 22:27:17 Player: Bert Result: Self-destructed Performance ------------- Evolutions (2) 1000 Regions Visited (5) 1000 Robots Destroyed (19) 95 Value Destroyed (655) 655 Prototype IDs (1) 20 Alien Tech Used (0) 0 Bonus (95) 95 TOTAL SCORE: 2865 Bonus ------- Follower Combat Kills 95 Cogmind --------- Core Integrity 432/550 Matter 300/300 Energy 99/100 System Corruption 5% Temperature Cool (9) Movement Core (250) Ox4 Location -8/Materials Parts ------- > --- POWER (2) -------- (None) > --- PROPULSION (3) --- (None) > --- UTILITY (4) ------ Heat Sink Medium Storage Unit Improved Signal Interpreter > --- WEAPON (2) ------- Flail > --- INVENTORY (10) --- Scrap Suit Peak State ------------ > --- POWER ------------ Light Ion Engine Light Ion Engine > --- PROPULSION ------- Compact Wheel Armored Wheel > --- UTILITY ---------- Medium Storage Unit Experimental Sensor Array Targeting Computer > --- WEAPON ----------- EM Pulse Gun Heavy EM Pulse Gun > --- INVENTORY -------- Compact Wheel Compact Wheel Compact Wheel Scrap Suit Heavy EM Pulse Gun Spread Laser Rocket Launcher Flail [Rating: 20] Favorites ----------- Power Light Ion Engine Engine Light Ion Engine Power Core Light Nuclear Core Propulsion Compact Wheel Wheel Compact Wheel Utility Medium Storage Unit Device Experimental Sensor Array Storage Medium Storage Unit Processor Targeting Computer Weapon Heavy EM Pulse Gun Energy Gun Heavy EM Pulse Gun Launcher Rocket Launcher Impact Weapon Flail Build | -11 -10 -10 -9 -9 -8 ------- Run | Yrd Mat Min Mat Min Mat Slots Evolved 4 | . . . 2 . 2 Power 1 | . . . 1 . . Propulsion 1 | . . . . . 1 Utility 2 | . . . 1 . 1 Weapon . | . . . . . . Parts Attached 29 | 7 9 . 8 4 1 Power 8 | 2 1 . 3 2 . Engine 7 | 2 1 . 3 1 . Core 1 | . . . . 1 . Reactor . | . . . . . . Propulsion 7 | 2 2 . 3 . . Treads . | . . . . . . Leg . | . . . . . . Wheel 7 | 2 2 . 3 . . Hover . | . . . . . . Flight . | . . . . . . Utility 7 | 1 3 . 1 1 1 Device 3 | . 1 . 1 1 . Storage 2 | 1 1 . . . . Processor 2 | . 1 . . . 1 Hackware . | . . . . . . Protection . | . . . . . . Artifact . | . . . . . . Weapon 7 | 2 3 . 1 1 . Energy Gun 5 | 2 3 . . . . Energy Cannon . | . . . . . . Ballistic Gun . | . . . . . . Ballistic Cannon . | . . . . . . Launcher 1 | . . . 1 . . Special Weapon . | . . . . . . Impact Weapon 1 | . . . . 1 . Slashing Weapon . | . . . . . . Piercing Weapon . | . . . . . . Special Melee Weapon . | . . . . . . Unidentified Prototypes 1 | . . . 1 . . Parts Lost 17 | . . . 10 1 6 Power 6 | . . . 4 . 2 Propulsion 5 | . . . 2 . 3 Utility 1 | . . . 1 . . Weapon 5 | . . . 3 1 1 Highest Loss Streak 7 | . . . 7 1 6 To Critical Strikes . | . . . . . . Average Backups 6 | 3 7 8 7 3 1 Power . | . 1 1 . . . Propulsion 2 | 2 2 2 2 1 . Utility . | . . 1 1 1 1 Weapon 2 | . 3 4 3 1 . Tool/Special . | . . . . . . Unused Backups 8 | . 7 . . . 1 Power 1 | . 1 . . . . Propulsion 5 | . 5 . . . . Utility 1 | . . . . . 1 Weapon 1 | . 1 . . . . Tool/Special . | . . . . . . Average Slot Usage (%) 89 | . 95 100 91 60 81 Engine 13 | . 14 14 18 3 8 Wheel 23 | . 27 28 19 22 22 Device 6 | . 9 . 10 3 9 Storage 12 | . 14 14 11 11 9 Processor 9 | . 2 14 11 11 8 Energy Gun 19 | . 26 28 18 3 7 Impact Weapon 1 | . . . . 2 9 Peak Build Rating 20 | 6 11 10 20 13 16 Average Rating 12 | 4 9 9 19 7 13 On Entrance 7 | . 6 9 10 7 13 Avg Prop Armor Cover (%) . | . . . . . . Naked Turns . | . . . . . . Heaviest Build 26 | 13 18 18 22 26 26 Greatest Support 48 | 26 38 32 32 32 48 Greatest Overweight (x) 6 | . 1 . 6 . 4 Average Overweight (x) . | . . . . . . Largest Inventory Capacity 10 | 8 10 10 10 10 10 Average Capacity 9 | 6 8 10 10 10 10 Most Carried 10 | 6 8 10 9 5 3 Average Carried 7 | 3 7 9 8 4 2 Final Capacity 10 | 8 10 10 10 10 10 Final Carried 10 | 6 8 10 5 3 2 Class Distribution -------------------- 100% | Mutant Dominant Class ---------------- Mutant | -10/Materials Mutant | -10/Mines Mutant | -9/Materials Mutant | -9/Mines Mutant | -8/Materials Resources | -11 -10 -10 -9 -9 -8 ----------- Run | Yrd Mat Min Mat Min Mat Matter Collected 573 | 213 127 47 72 99 15 Remotely . | . . . . . . Salvage Created 744 | . 140 91 427 32 54 Parts 33 | . 5 6 19 2 1 Haulers Intercepted . | . . . . . . Recyclers Shooed 1 | . . . 1 . . Parts Field Recycled . | . . . . . . Retrieved Matter . | . . . . . . Parts Self-Destructed . | . . . . . . Prevented . | . . . . . . Parts Restored . | . . . . . . Kills | -11 -10 -10 -9 -9 -8 ------- Run | Yrd Mat Min Mat Min Mat Combat Hostiles Destroyed 17 | . 3 2 10 1 1 Guns 13 | . 2 2 8 1 . AOE 3 | . 1 . 2 . . Classes Destroyed 4 | . 1 . 2 . 1 Worker 1 | . . . 1 . . Recycler 1 | . . . 1 . . Grunt 16 | . 3 2 10 1 . Sentry 1 | . . . . . 1 Best Kill Streak 3 | . 2 2 3 1 1 Combat Bots Only 3 | . 2 2 3 1 1 Max Kills in Single Turn 1 | . 1 1 1 1 1 Gunslinging . | . . . . . . Exploded 1 | . 1 . 1 . . Melee . | . . . . . . Uniques/NPCs Destroyed . | . . . . . . Combat | -11 -10 -10 -9 -9 -8 -------- Run | Yrd Mat Min Mat Min Mat Hostile Shots Fired 117 | . 13 2 69 1 32 Missed 41 | . 4 1 25 1 10 Hits 76 | . 9 1 44 . 22 Melee 7 | . . . 3 . 4 Projectile 69 | . 9 1 41 . 18 Critical Strikes 1 | . . . . . 1 Damage Taken 1590 | . 102 11 962 39 476 Core 451 | . 22 . 301 10 118 Absorbed by Shields . | . . . . . . Core Remaining (%) 71 | 100 . 91 . 22 . Volleys Fired 41 | . 14 3 22 1 1 Largest 2 | . 2 2 2 1 1 Hottest 110 | . 110 85 98 45 45 Shots Fired 79 | . 28 6 42 2 1 Gun 74 | . 28 6 38 1 1 Cannon . | . . . . . . Launcher 5 | . . . 4 1 . Special . | . . . . . . Kinetic . | . . . . . . Thermal 4 | . 1 . 3 . . Explosive 5 | . . . 4 1 . Electromagnetic 70 | . 27 6 35 1 1 Robot Hit Streak 12 | . 5 8 12 10 . Robot Miss Streak 5 | . 3 . 5 . 1 Penetration Max . | . . . . . . Secondary Targets . | . . . . . . Shots Hit Robots 50 | . 17 5 26 1 1 Core Hits 36 | . 6 5 21 4 . Critical Kills . | . . . . . . Critical Parts Destroyed 1 | . . . . . 1 Critical Strikes 3 | . . . 2 . 1 Corrupt 2 | . . . 2 . . Smash 1 | . . . . . 1 Melee Attacks 3 | . . . . . 3 Impact 3 | . . . . . 3 Slashing . | . . . . . . Piercing . | . . . . . . Sneak Attacks . | . . . . . . Combat Hostiles . | . . . . . . Follow-up Attacks . | . . . . . . Damage Inflicted 1352 | . 340 76 843 53 40 Guns 744 | . 274 73 381 16 . Cannons . | . . . . . . Explosions 565 | . 66 . 462 37 . Melee 40 | . . . . . 40 Ramming 3 | . . 3 . . . Kinetic . | . . . . . . Thermal 167 | . 77 . 90 . . Explosive 453 | . . . 416 37 . Electromagnetic 689 | . 263 73 337 16 . Impact 40 | . . . . . 40 Slashing . | . . . . . . Piercing . | . . . . . . Highest Corruption 6 | . . . 6 6 5 Average Corruption 5 | . . . 6 6 5 Corruption Purged . | . . . . . . Corruption Blocked . | . . . . . . Effects 5 | . . . 1 3 1 Message Errors 1 | . . . 1 . . Matter Fused 1 | . . . . 1 . Energy Discharges 2 | . . . . 1 1 Misfires 1 | . . . . 1 . Overload Shots . | . . . . . . Overflow Damage 106 | . . . 56 10 40 Projectiles . | . . . . . . Explosions 66 | . . . 56 10 . Melee 40 | . . . . . 40 Knockbacks 1 | . . 1 . . . Impact 1 | . . 1 . . . Kinetic . | . . . . . . Secondary . | . . . . . . Self-Inflicted Damage 102 | . . 1 60 41 . Shots 4 | . . . 3 1 . Rammed 1 | . . 1 . . . Targets Rammed 1 | . . 1 . . . Kicked . | . . . . . . Crushed . | . . . . . . Highest Temperature 261 | . 261 78 150 . . Average Temperature 66 | . 94 41 50 . . Received Heat Transfer 465 | . 57 6 258 . 144 Effects 1 | . 1 . . . . Energy Bleed 1 | . 1 . . . . Siege Activations . | . . . . . . Martial Activations . | . . . . . . Shielding Activations . | . . . . . . Robots Disrupted . | . . . . . . Combat Hostiles . | . . . . . . Robots Corrupted 1 | . . . . . 1 Combat Hostiles 1 | . . . . . 1 Parts Fried 4 | . 2 . 1 . 1 Impact Corruptions 1 | . . . . . 1 Robots Melted . | . . . . . . Combat Hostiles . | . . . . . . Parts Melted . | . . . . . . Heat Transferred 175 | . 65 . 110 . . Parts Sabotaged . | . . . . . . Parts Stolen . | . . . . . . Parts Stripped . | . . . . . . Power Chain Reactions 2 | . 1 . 1 . . Alert | -11 -10 -10 -9 -9 -8 ------- Run | Yrd Mat Min Mat Min Mat Maximum Alert Level . | . . . . . . Low Security (%) 100 | 100 100 100 100 100 100 Level 1 . | . . . . . . Level 2 . | . . . . . . Level 3 . | . . . . . . Level 4 . | . . . . . . Level 5 . | . . . . . . High Security . | . . . . . . Max Security . | . . . . . . Peak Influence 118 | . 63 50 118 36 35 Initial 26 | . . . . 26 5 Average 18 | . 16 7 36 15 3 Influence Increases 642 | . 73 50 330 114 75 Destroy 0b10 Robot/C 400 | . 60 40 200 80 20 Destroy 0b10 Robot/NC 10 | . . . 10 . . Destroy Leader 80 | . 10 10 30 20 10 Allied During Kill 9 | . . . . 9 . Disable Machine 30 | . . . 30 . . Destroy Structure 38 | . 3 . 30 5 . Lose Combat Pursuer 75 | . . . 30 . 45 Influence Decreases 607 | . 73 50 261 167 56 Entered New Map 54 | . . . . 43 11 Time Decay 361 | . 73 50 161 62 15 Lost Part 139 | . . . 100 9 30 Lost Ally 53 | . . . . 53 . Squads Dispatched 5 | . . . 3 . 2 Investigation 1 | . . . 1 . . Extermination . | . . . . . . Reinforcement 4 | . . . 2 . 2 Assault . | . . . . . . Garrison . | . . . . . . Intercept . | . . . . . . Searches Triggered . | . . . . . . Construction Impeded . | . . . . . . Haulers Reinforced . | . . . . . . Active Scanning Responses . | . . . . . . Cargo Convoy Interrupts . | . . . . . . Stealth | -11 -10 -10 -9 -9 -8 --------- Run | Yrd Mat Min Mat Min Mat Distress Signals 2 | . . . 1 . 1 Communications Jammed . | . . . . . . Distress Signals . | . . . . . . Times Spotted 40 | . 8 2 17 3 10 Peak Tracking Total 10 | . 4 2 5 2 10 Tactical Retreats 3 | . . . 2 . 1 Traps | -11 -10 -10 -9 -9 -8 ------- Run | Yrd Mat Min Mat Min Mat Traps Triggered 1 | . 1 . . . . Indirectly . | . . . . . . Trap Hack Attempts . | . . . . . . Triggered . | . . . . . . Disarmed . | . . . . . . Reprogrammed . | . . . . . . Reused . | . . . . . . Traps Extracted . | . . . . . . Installed . | . . . . . . Triggered . | . . . . . . Machines | -11 -10 -10 -9 -9 -8 ---------- Run | Yrd Mat Min Mat Min Mat Machines Disabled 2 | . . . 2 . . Max in Single Turn 1 | . . . 1 . . Machines Repaired . | . . . . . . Machines Dismantled . | . . . . . . Machines Sabotaged . | . . . . . . Overloaded Fab Kills . | . . . . . . Hacking | -11 -10 -10 -9 -9 -8 --------- Run | Yrd Mat Min Mat Min Mat Machines Accessed 4 | . . . 2 . 2 Terminals 4 | . . . 2 . 2 Fabricators . | . . . . . . Repair Stations . | . . . . . . Recycling Units . | . . . . . . Scanalyzers . | . . . . . . Garrison Access . | . . . . . . Total Hacks 11 | . . . 5 . 6 Successful 4 | . . . 1 . 3 Failed 7 | . . . 4 . 3 Catastrophic . | . . . . . . Database Lockouts . | . . . . . . Manual . | . . . . . . Terminals 11 | . . . 5 . 6 Fabricators . | . . . . . . Repair Stations . | . . . . . . Recycling Units . | . . . . . . Scanalyzers . | . . . . . . Garrison Access . | . . . . . . Terminal Hacks 4 | . . . 1 . 3 Record 1 | . . . 1 . . Alert Level 1 | . . . . . 1 Dispatch Records 1 | . . . . . 1 Registered Prototypes 1 | . . . . . 1 Fabricator Hacks . | . . . . . . Repair Station Hacks . | . . . . . . Recycling Unit Hacks . | . . . . . . Scanalyzer . | . . . . . . Garrison Access Hacks . | . . . . . . Unauthorized Hacks . | . . . . . . Terminals . | . . . . . . Fabricators . | . . . . . . Repair Stations . | . . . . . . Recycling Units . | . . . . . . Scanalyzers . | . . . . . . Garrison Access . | . . . . . . Data Cores Recovered . | . . . . . . Used . | . . . . . . Hacking Detections 3 | . . . 2 . 1 Full Trace Events 1 | . . . 1 . . Feedback Events . | . . . . . . Feedback Blocked . | . . . . . . Robot Schematics Acquired . | . . . . . . Robots Built . | . . . . . . Authchips . | . . . . . . Time . | . . . . . . Total Robot Build Rating . | . . . . . . Part Schematics Acquired . | . . . . . . Parts Built . | . . . . . . Authchips . | . . . . . . Time . | . . . . . . Total Part Build Rating . | . . . . . . Part Studies Acquired . | . . . . . . Parts Repaired . | . . . . . . Time . | . . . . . . Parts Recycled . | . . . . . . Recycled Matter . | . . . . . . Retrieved Matter . | . . . . . . Retrieved Components . | . . . . . . Parts Scanalyzed . | . . . . . . Part Schematics Acquired . | . . . . . . Parts Damaged . | . . . . . . Bothacking | -11 -10 -10 -9 -9 -8 ------------ Run | Yrd Mat Min Mat Min Mat Used RIF Installer . | . . . . . . Robots Hacked . | . . . . . . Non-combat . | . . . . . . Combat . | . . . . . . Robot Hacks Applied . | . . . . . . Relay Couplers Released . | . . . . . . Fabnet Peak Effective % . | . . . . . . Robots Rewired . | . . . . . . Allies Hacked . | . . . . . . Hacks Repelled . | . . . . . . Allies | -11 -10 -10 -9 -9 -8 -------- Run | Yrd Mat Min Mat Min Mat Total Allies 3 | . . . . 3 . Largest Group 3 | . . . . 3 . Highest-Rated Group 40 | . . . . 40 . Highest-Rated Ally 16 | . . . . 16 . Total Orders . | . . . . . . Ally Attacks 15 | . . . . 15 . Total Damage 145 | . . . . 145 . Kills 3 | . . . . 3 . Allies Corrupted . | . . . . . . Allies Melted . | . . . . . . Intel | -11 -10 -10 -9 -9 -8 ------- Run | Yrd Mat Min Mat Min Mat Active Infowar (turns) 435 | . . . 435 . . Sensors 435 | . . . 435 . . Robot Analysis Total . | . . . . . . Derelict Logs Recovered 3 | . . 2 . 1 . Drone Launches . | . . . . . . Drone Recoveries . | . . . . . . Exploration | -11 -10 -10 -9 -9 -8 ------------- Run | Yrd Mat Min Mat Min Mat Turns Passed 1422 | 64 281 334 439 168 136 Spaces Moved 1055 | 55 215 293 240 135 117 Core 24 | 3 3 . 17 . 1 Treads . | . . . . . . Legs . | . . . . . . Wheels 1031 | 52 212 293 223 135 116 Hover . | . . . . . . Flight . | . . . . . . Fastest Speed 50 | 50 80 100 95 100 100 Average Speed 100 | 88 94 100 108 100 102 Slowest Speed 350 | 100 100 100 350 100 250 Overloaded Moves . | . . . . . . Propulsion Burnouts . | . . . . . . Robots Hopped . | . . . . . . Potential Cave-ins . | . . . . . . Cave-ins Triggered 1 | . . . 1 . . Exploration Rate (%) 31 | 4 38 75 23 34 17 Regions Visited 5 Branch Regions 2 Pre-discovered Areas . | . . . . . . Known Exits Taken . | . . . . . . Unknown Exits Taken 5 | 1 1 1 1 1 . Scrap Searched 1 | . . 1 . . . Spaces Dug . | . . . . . . Terrain Destroyed 45 | . 2 . 37 6 . Melee . | . . . . . . Projectile . | . . . . . . AOE 45 | . 2 . 37 6 . Terrain Rammed . | . . . . . . Walls Destroyed . | . . . . . . Machines Disabled . | . . . . . . Actions | -11 -10 -10 -9 -9 -8 --------- Run | Yrd Mat Min Mat Min Mat Total 1330 | 66 269 328 375 165 127 Wait 162 | . 3 29 104 25 1 Move 1050 | 54 214 292 239 134 117 Hop . | . . . . . . Pick Up 16 | 5 9 2 . . . Fast Attach 21 | 6 9 . 2 3 1 Attach 11 | . 1 . 6 2 2 Detach 6 | . 4 . . . 2 Swap 5 | 1 2 . 2 . . Drop 14 | . 13 1 . . . Fire 41 | . 14 3 22 1 1 Melee 3 | . . . . . 3 Ram 1 | . . 1 . . . Kick . | . . . . . . Crush . | . . . . . . Escape Stasis . | . . . . . . Rewire . | . . . . . . Trap . | . . . . . . Miscellaneous . | . . . . . . Route ------- -11/Scrapyard -10/Materials (discovered 2 exits: [*Min x2]) -10/Mines -9/Materials -9/Mines -8/Materials (discovered 1 exit: [*Sto]) History --------- Turn | Location | Event 2 | -11/Scrapyard | Met Revision 17 19 | -11/Scrapyard | Discovered new exit (range 14) 65 | -11/Scrapyard | Entered Materials 66 | -10/Materials | Met a group of wandering Federalists 211 | -10/Materials | Discovered new exit (range 16) 302 | -10/Materials | Discovered new exit (range 11) 318 | -10/Materials | Build established: Mutant 346 | -10/Materials | Entered Mines 395 | -10/Mines | Learned Materials emergency access door positions 450 | -10/Mines | Learned Materials non-interactive machine intel 469 | -10/Mines | Found a damaged Exp. Sensor Array with a note attached 473 | -10/Mines | Found Prototype Device 511 | -10/Mines | Found a Scrap Suit stashed away for nefarious purposes 514 | -10/Mines | Found Scrap Suit 672 | -10/Mines | Discovered new exit (range 10) 680 | -10/Mines | Entered Materials 680 | -9/Materials | Evolved 2 slots: Power x1, Utility x1 681 | -9/Materials | Loaded intel: 33 non-interactive machine locations 681 | -9/Materials | Identified Exp. Sensor Array 1063 | -9/Materials | Crushed by falling debris 1063 | -9/Materials | Core integrity fell below 50% 1086 | -9/Materials | Discovered new exit (range 7) 1094 | -9/Materials | Lost 7 parts (2p2n3w) 1119 | -9/Materials | Entered Mines 1127 | -9/Mines | Assisted by bots powering up and referring to "LRC-V3" 1147 | -9/Mines | Lost 3 parts (2p1u) 1157 | -9/Mines | Learned Materials terminal intel 1272 | -9/Mines | Discovered new exit (range 15) 1287 | -9/Mines | Entered Materials 1287 | -8/Materials | Evolved 2 slots: Propulsion x1, Utility x1 1289 | -8/Materials | Loaded intel: 11 terminal locations 1366 | -8/Materials | Discovered new exit (range 13) 1423 | -8/Materials | Self-destructed Last Messages --------------- 01396_ Com. Wheel destroyed. 01398_ Critical hit (Burn: +37). 01398_ Hvy. EM Pulse Gun destroyed. 01398_ Knocked back. 01400_ K-01 Serf collects debris. 01400_ Y-45 Defender suffers critical hit (Smash). 01400_ Destroyed Imp. Ion Engine. 01400_ Y-45 Defender system corrupted by crushing effect. 01401_ Y-45 Defender system terminally corrupted. 01401_ Heat Sink fried. 01403_ Acquired 15 matter. 01405_ K-01 Serf collects debris. 01407_ Lgt. Nuclear Core destroyed. 01408_ K-01 Serf collects debris. 01414_ Ion Engine destroyed. 01414_ System corrupted by crushing effect (+5). 01414_ Knocked back. 01415_ System corrupted: Energy discharge (-22). 01418_ Com. Wheel destroyed. Map ----- +----------------------------------------------------+ | ?????????????????????????????????????????????????? | | ?????????????????????????????????????????????????? | | ?????????????????????????????????????????????????? | | ?????????????????????????????????????????????????? | | ?????????????????????????????????????????????????? | | ?????????????????????????????????????????????????? | | ?????????????????????????????????????????????????? | | ???????????????????????????????????????????????+?? | | ?????????????????????????????????????????????????? | | ?????????????????????????????????????????????????? | | ?????????????????###+###?????????????????????????? | | #######+########## ##########????????????????? | | ????????????????? | | ???????????????? | | H % ????????????????? | | ####+####/##### ###???????????????????????? | | ## ###%[ ##?????????????????????????? | | ## """ """ #?# #??????????????????????????? | | ##[ """ """ #?# #??????????????????????????? | | ## """ """ #?# #??????????????????????????? | | ## """ """ #?# #??????????????????????????? | | ##! #?# #??????????????????????????? | | ## ### g ##?????????????????????????? | | ############## ##########+### ????????? | | ???? g ????????? | | < ?? T @ ????????? | | ??? a gb ????????? | | #???######+### # g ????????? | | #?????????????####### ############# ?????????? | | ???????????????????????# #??????????????????????? | | ???????????????????????# #??????????????????????? | | ???????????????????????# #??????????????????????? | | ??????????????????????? ??????????????????????? | | ??????????????????????? ??????????????????????? | | ??????????[???????????? * ?????????????????????? | | ??????????????????????? #?????????????????????? | | ??????????????????????######?????????????????????? | | ?????????????????????????????????????????????????? | | ?????????????????????????????????????????????????? | | ?????????????????????????????????????????????????? | | ?????????????????????????????????????????????????? | | ?????????????????????????????????????????????????? | | ?????????????????????????????????????????????????? | | ?????????????????????????????????????T???????????? | | ?????????????????????????????????????????????????? | | ?????????????????????????????????????????????????? | | ?????????????????????????????????????????????????? | | | | | | | +----------------------------------------------------+ Best States ------------- Heat Dissipation 41 Energy Generation 19 Energy Capacity 310 Matter Stores 300 Matter Capacity 300 Sight Range 16 Robot Scan Range 20 Terrain Scan Density 10 Additional Mass Support 6 Evasion (%) 42 Targeting Accuracy 5 Item Schematics ----------------- None Robot Schematics ------------------ None Fabricated ------------ Nothing Repaired ---------- Nothing Studied --------- None Alien Tech Used ----------------- None Achievements -------------- For Emergencies Only You Again Challenges ------------ None Game ------ Seed EnhancedElectronAutobeam Manual? 0 Play Time 00:27:09 Cumulative 170.3 hours Start 2025.10.26 @ 23:40:34 End 2025.10.28 @ 22:27:17 Sessions 3 Manual Loads 0 Difficulty Rogue Special Mode None Game No. 234 Rogue 234 Adventurer 0 Explorer 0 Win Type - Total 1 Types 1/0/0/0/0/0/0/0/0/0 Lore% 21 Gallery% 46 Achievement% 24 Wizard Run 0 Options --------- Layout 1 ASCII 0 Keyboard 1 Movement Numpad Keybinds 0 Fullscreen 1 Font 16/Tamsyn Map View 55x38 Zoom Use 0% Tactical HUD 1 Map Filters NONE Filters NONE Steam 1 RUN: 123fbcb6-a636-4e20-a158-6feb7e4a6622